Cogmind - Beta 16 @@@ ROGUE MODE // 2025.11.11 @ 17:23:21 Player: Mozco Result: Destroyed by S-10 Pest with Light Assault Rifle Performance ------------- Evolutions (0) 0 Regions Visited (1) 200 Robots Destroyed (3) 15 Value Destroyed (102) 102 Prototype IDs (0) 0 Alien Tech Used (0) 0 Bonus (0) 0 TOTAL SCORE: 317 Bonus ------- None Cogmind --------- Core Integrity 0/250 Matter 275/300 Energy 170/250 System Corruption 0% Temperature Cool (0) Movement Walking (120) Location -10/Materials Parts ------- > --- POWER (1) -------- Ion Engine > --- PROPULSION (2) --- Aluminum Leg Aluminum Leg > --- UTILITY (2) ------ Small Storage Unit > --- WEAPON (2) ------- Mining Claw > --- INVENTORY (8) ---- Aluminum Leg Compact Wheel Compact Wheel Small Matter Pod (50) Peak State ------------ > --- POWER ------------ Ion Engine > --- PROPULSION ------- Light Treads Light Treads > --- UTILITY ---------- Small Storage Unit Propulsion Shielding > --- WEAPON ----------- Mining Claw > --- INVENTORY -------- Ion Engine Aluminum Leg Aluminum Leg Aluminum Leg Aluminum Leg Compact Wheel Compact Wheel Small Matter Pod [Rating: 6] Favorites ----------- Power Ion Engine Engine Ion Engine Propulsion Light Treads Treads Light Treads Leg Aluminum Leg Utility Small Storage Unit Storage Small Storage Unit Protection Propulsion Shielding Weapon Mining Claw Slashing Weapon Mining Claw Build | -11 -10 ------- Run | Yrd Mat Slots Evolved . | . . Power . | . . Propulsion . | . . Utility . | . . Weapon . | . . Parts Attached 12 | 4 8 Power 3 | 1 2 Engine 3 | 1 2 Core . | . . Reactor . | . . Propulsion 6 | 2 4 Treads 2 | . 2 Leg 4 | 2 2 Wheel . | . . Hover . | . . Flight . | . . Utility 2 | 1 1 Device . | . . Storage 1 | 1 . Processor . | . . Hackware . | . . Protection 1 | . 1 Artifact . | . . Weapon 1 | . 1 Energy Gun . | . . Energy Cannon . | . . Ballistic Gun . | . . Ballistic Cannon . | . . Launcher . | . . Special Weapon . | . . Impact Weapon . | . . Slashing Weapon 1 | . 1 Piercing Weapon . | . . Special Melee Weapon . | . . Unidentified Prototypes . | . . Parts Lost 6 | . 6 Power 2 | . 2 Propulsion 3 | . 3 Utility 1 | . 1 Weapon . | . . Highest Loss Streak 5 | . 5 To Critical Strikes . | . . Average Backups 5 | 2 6 Power . | . . Propulsion 4 | 1 4 Utility . | . . Weapon . | . . Tool/Special . | . . Unused Backups 3 | . 3 Power . | . . Propulsion 2 | . 2 Utility 1 | . 1 Weapon . | . . Tool/Special . | . . Average Slot Usage (%) 61 | . 61 Engine 12 | . 12 Treads 19 | . 19 Leg 8 | . 8 Storage 14 | . 14 Protection 5 | . 5 Peak Build Rating 6 | 4 6 Average Rating 4 | 3 4 On Entrance 2 | . 4 Avg Prop Armor Cover (%) . | . . Naked Turns . | . . Heaviest Build 13 | 10 13 Greatest Support 40 | 20 40 Greatest Overweight (x) . | . . Average Overweight (x) . | . . Largest Inventory Capacity 8 | 8 8 Average Capacity 7 | 6 8 Most Carried 8 | 5 8 Average Carried 5 | 2 6 Final Capacity 8 | 8 8 Final Carried 5 | 5 4 Class Distribution -------------------- 100% | Mutant Dominant Class ---------------- Mutant | -10/Materials Resources | -11 -10 ----------- Run | Yrd Mat Matter Collected 312 | 236 76 Remotely . | . . Salvage Created 22 | . 22 Parts 1 | . 1 Haulers Intercepted . | . . Recyclers Shooed . | . . Parts Field Recycled . | . . Retrieved Matter . | . . Parts Self-Destructed . | . . Prevented . | . . Parts Restored . | . . Kills | -11 -10 ------- Run | Yrd Mat Combat Hostiles Destroyed 3 | . 3 Melee 3 | . 3 Classes Destroyed 1 | . 1 Grunt 3 | . 3 Best Kill Streak 2 | . 2 Combat Bots Only 2 | . 2 Max Kills in Single Turn 1 | . 1 Gunslinging . | . . Exploded . | . . Melee 1 | . 1 Uniques/NPCs Destroyed . | . . Combat | -11 -10 -------- Run | Yrd Mat Hostile Shots Fired 124 | . 124 Missed 22 | . 22 Hits 102 | . 102 Projectile 102 | . 102 Damage Taken 1002 | . 1002 Core 254 | . 254 Absorbed by Shields . | . . Redirected to Shielding 51 | . 51 Core Remaining (%) 100 | 100 . Volleys Fired . | . . Largest . | . . Hottest . | . . Shots Fired . | . . Gun . | . . Cannon . | . . Launcher . | . . Special . | . . Kinetic . | . . Thermal . | . . Explosive . | . . Electromagnetic . | . . Robot Hit Streak . | . . Robot Miss Streak . | . . Penetration Max . | . . Secondary Targets . | . . Shots Hit Robots 4 | . 4 Core Hits 4 | . 4 Critical Kills . | . . Critical Parts Destroyed . | . . Critical Strikes . | . . Melee Attacks 7 | . 7 Impact . | . . Slashing 7 | . 7 Piercing . | . . Sneak Attacks . | . . Combat Hostiles . | . . Follow-up Attacks . | . . Damage Inflicted 192 | . 192 Guns . | . . Cannons . | . . Explosions . | . . Melee 95 | . 95 Ramming 97 | . 97 Kinetic . | . . Thermal . | . . Explosive . | . . Electromagnetic . | . . Impact . | . . Slashing 95 | . 95 Piercing . | . . Highest Corruption . | . . Average Corruption . | . . Corruption Purged . | . . Corruption Blocked . | . . Overload Shots . | . . Overflow Damage 4 | . 4 Projectiles . | . . Explosions . | . . Melee 4 | . 4 Knockbacks . | . . Impact . | . . Kinetic . | . . Secondary . | . . Self-Inflicted Damage . | . . Shots . | . . Rammed 29 | . 29 Targets Rammed 54 | . 54 Kicked 22 | . 22 Crushed 3 | . 3 Highest Temperature . | . . Average Temperature . | . . Received Heat Transfer 309 | . 309 Siege Activations . | . . Martial Activations . | . . Shielding Activations . | . . Robots Disrupted . | . . Combat Hostiles . | . . Robots Corrupted . | . . Combat Hostiles . | . . Parts Fried . | . . Impact Corruptions . | . . Robots Melted . | . . Combat Hostiles . | . . Parts Melted . | . . Heat Transferred . | . . Parts Sabotaged . | . . Parts Stolen . | . . Parts Stripped . | . . Power Chain Reactions . | . . Alert | -11 -10 ------- Run | Yrd Mat Maximum Alert Level . | . . Low Security (%) 100 | 100 100 Level 1 . | . . Level 2 . | . . Level 3 . | . . Level 4 . | . . Level 5 . | . . High Security . | . . Max Security . | . . Peak Influence 70 | . 70 Initial . | . . Average 13 | . 15 Influence Increases 177 | . 177 Destroy 0b10 Robot/C 60 | . 60 Destroy Leader 10 | . 10 Successful Hack 17 | . 17 Lose Combat Pursuer 90 | . 90 Influence Decreases 162 | . 162 Time Decay 103 | . 103 Lost Part 49 | . 49 Lost Ally 10 | . 10 Squads Dispatched 2 | . 2 Investigation 1 | . 1 Extermination . | . . Reinforcement 1 | . 1 Assault . | . . Garrison . | . . Intercept . | . . Searches Triggered . | . . Construction Impeded . | . . Haulers Reinforced . | . . Active Scanning Responses . | . . Cargo Convoy Interrupts . | . . Stealth | -11 -10 --------- Run | Yrd Mat Distress Signals . | . . Communications Jammed . | . . Distress Signals . | . . Times Spotted 13 | . 13 Peak Tracking Total 6 | . 6 Tactical Retreats 3 | . 3 Traps | -11 -10 ------- Run | Yrd Mat Traps Triggered 1 | . 1 Indirectly . | . . Trap Hack Attempts . | . . Triggered . | . . Disarmed . | . . Reprogrammed . | . . Reused . | . . Traps Extracted . | . . Installed . | . . Triggered . | . . Machines | -11 -10 ---------- Run | Yrd Mat Machines Disabled . | . . Max in Single Turn . | . . Machines Repaired . | . . Machines Dismantled . | . . Machines Sabotaged . | . . Overloaded Fab Kills . | . . Hacking | -11 -10 --------- Run | Yrd Mat Machines Accessed 3 | . 3 Terminals 3 | . 3 Fabricators . | . . Repair Stations . | . . Recycling Units . | . . Scanalyzers . | . . Garrison Access . | . . Total Hacks 8 | . 8 Successful 6 | . 6 Failed 2 | . 2 Catastrophic . | . . Database Lockouts . | . . Manual 8 | . 8 Terminals 8 | . 8 Fabricators . | . . Repair Stations . | . . Recycling Units . | . . Scanalyzers . | . . Garrison Access . | . . Terminal Hacks 1 | . 1 Robot Analysis 1 | . 1 Fabricator Hacks . | . . Repair Station Hacks . | . . Recycling Unit Hacks . | . . Scanalyzer . | . . Garrison Access Hacks . | . . Unauthorized Hacks 5 | . 5 Terminals 5 | . 5 Assimilate 2 | . 2 Botnet 2 | . 2 Operators 1 | . 1 Fabricators . | . . Repair Stations . | . . Recycling Units . | . . Scanalyzers . | . . Garrison Access . | . . Data Cores Recovered . | . . Used . | . . Hacking Detections 3 | . 3 Full Trace Events . | . . Feedback Events . | . . Feedback Blocked . | . . Robot Schematics Acquired . | . . Robots Built . | . . Authchips . | . . Time . | . . Total Robot Build Rating . | . . Part Schematics Acquired . | . . Parts Built . | . . Authchips . | . . Time . | . . Total Part Build Rating . | . . Part Studies Acquired . | . . Parts Repaired . | . . Time . | . . Parts Recycled . | . . Recycled Matter . | . . Retrieved Matter . | . . Retrieved Components . | . . Parts Scanalyzed . | . . Part Schematics Acquired . | . . Parts Damaged . | . . Bothacking | -11 -10 ------------ Run | Yrd Mat Used RIF Installer . | . . Robots Hacked . | . . Non-combat . | . . Combat . | . . Robot Hacks Applied . | . . Relay Couplers Released . | . . Fabnet Peak Effective % . | . . Robots Rewired . | . . Allies Hacked . | . . Hacks Repelled . | . . Allies | -11 -10 -------- Run | Yrd Mat Total Allies 1 | . 1 Largest Group 1 | . 1 Highest-Rated Group 10 | . 10 Highest-Rated Ally 10 | . 10 Total Orders . | . . Ally Attacks . | . . Total Damage . | . . Kills . | . . Allies Corrupted . | . . Allies Melted . | . . Intel | -11 -10 ------- Run | Yrd Mat Active Infowar (turns) . | . . Robot Analysis Total 1 | . 1 Derelict Logs Recovered . | . . Drone Launches . | . . Drone Recoveries . | . . Exploration | -11 -10 ------------- Run | Yrd Mat Turns Passed 499 | 70 429 Spaces Moved 252 | 53 199 Core 6 | 6 . Treads 128 | . 128 Legs 118 | 47 71 Wheels . | . . Hover . | . . Flight . | . . Fastest Speed 50 | 50 120 Average Speed 138 | 112 145 Slowest Speed 160 | 120 160 Overloaded Moves . | . . Propulsion Burnouts . | . . Robots Hopped . | . . Potential Cave-ins . | . . Cave-ins Triggered . | . . Exploration Rate (%) 19 | 3 35 Regions Visited 1 Branch Regions . Pre-discovered Areas . | . . Known Exits Taken . | . . Unknown Exits Taken 1 | 1 . Scrap Searched . | . . Spaces Dug . | . . Terrain Destroyed . | . . Melee . | . . Projectile . | . . AOE . | . . Terrain Rammed . | . . Walls Destroyed . | . . Machines Disabled . | . . Actions | -11 -10 --------- Run | Yrd Mat Total 360 | 61 299 Wait 27 | . 27 Move 251 | 52 199 Hop . | . . Pick Up 8 | 5 3 Fast Attach 7 | 4 3 Attach 4 | . 4 Detach . | . . Swap 2 | . 2 Drop . | . . Fire . | . . Melee 7 | . 7 Ram . | . . Kick 22 | . 22 Crush 32 | . 32 Escape Stasis . | . . Rewire . | . . Trap . | . . Miscellaneous . | . . Route ------- -11/Scrapyard -10/Materials (discovered 1 exit: [*Mat]) History --------- Turn | Location | Event 2 | -11/Scrapyard | Met Revision 17 3 | -11/Scrapyard | Discovered new exit (range 15) 71 | -11/Scrapyard | Entered Materials 223 | -10/Materials | Core integrity fell below 50% 256 | -10/Materials | Discovered new exit (range 12) 307 | -10/Materials | Build established: Mutant 485 | -10/Materials | Core integrity fell below 20% 500 | -10/Materials | Destroyed by S-10 Pest with Light Assault Rifle Last Messages --------------- 00309_ Acquired Aluminum Leg. 00314_ Acquired Propulsion Shielding. 00324_ Acquired Sml. Matter Pod. 00393_ Acquired 68 matter. 00431_ K-01 Serf cleans the Terminal. 00440_ Slammed into K-01 Serf. 00443_ Slammed into G-47 Trooper. 00445_ Slammed into S-10 Pest. 00449_ Crushed G-34 Mercenary. 00449_ G-34 Mercenary destroyed. 00450_ R-06 Scavenger collects Heat Sink. 00451_ Slammed into W-16 Scout. 00453_ Slammed into R-06 Scavenger. 00473_ Acquired Mining Claw. 00477_ Destroyed Flight Unit. 00478_ Ion Engine destroyed. 00478_ Lgt. Treads destroyed. 00487_ Propulsion Shielding destroyed. 00489_ Aluminum Leg destroyed. 00491_ Lgt. Treads destroyed. Map ----- +----------------------------------------------------+ | ?????????????????????????????????????????????????? | | ?????????????????????????????????????????????????? | | ?????????????????????????????????????????????????? | | ?????????????????????????????????????????????????? | | ?????????????????????????????????????????????????? | | ?????????????????????????????????????????????????? | | ?????????????????????????????????????????????????? | | ?????????????????????????????????????????????????? | | ?????????????????????????????????????????????????? | | ??????????????????????????? ???????????????????? | | ????????????????????????? ???????????????????? | | ????????????????????????" ??????????????????? | | ????????????????????????" ??????????????????? | | ??????????????????????""" #??????????????????? | | ???????????????????????"" #??????????????????? | | ???????????????????????? ###????????????????? | | ???????????????????????? ????????????????? | | ???????????????????#????? ?????????????????? | | ???o???????????????# ????? ??????????????????? | | ????????????????####/###### #??????????????????? | | ????????????????# s ]# #??????????????????? | | ?????#??????????? s # #?#########????????? | | ####+#?????????????""" # # #????????? | | #????????????""""" m# # #????????? | | ||| #??????????? """"" ! s + + ???? | | ||| #??######### """"" @# # #????????? | | ||| #??# # """ ### # #????????? | | #??# """ # #?# #? #????????? | | #??# """%###########?# #? #????????? | | ######??# """%#???????????# #?? #????????? | | #???????# %%%#########???#%#??########????????? | | ###############+## #???#%#??????????????????? | | ## +%%%%%%%+ ]]] #???#%#??????????????????? | | ## %######%## ]]] #???#%#??????????????????? | | ## """ %#????#%## ]]] #???#%#??????????????????? | | # """ #????# ## #???# #??????????????????? | | # """ #????# ## = #####%#??????????????????? | | + #????# ######+## % #??????????????????? | | # """ #????+ #??????????????????? | | # """ #????#^ T #??????????????????? | | ## """ #????# #??????????????????? | | ## #????# ######+## #??????????????????? | | ## #????# ## ## ##??????????????????? | | ##########????# ## ## #???????????????????? | | #?????????????# ## """ ## #???????????????????? | | #?????????????# ## """ ## #???????????????????? | | #?????????????# ## """ ## #???????????????????? | | #?????????????# ## ## #???????????????????? | | #?????????????# ########## #???????????????????? | | #????????###### #????????# #???????????????????? | +----------------------------------------------------+ Best States ------------- Heat Dissipation 25 Energy Generation 10 Energy Capacity 250 Matter Stores 300 Matter Capacity 300 Sight Range 16 Terrain Scan Density 10 Propulsion Shielding 33 Evasion (%) 55 Recoil Reduction 2 Item Schematics ----------------- None Robot Schematics ------------------ None Fabricated ------------ Nothing Repaired ---------- Nothing Studied --------- None Alien Tech Used ----------------- None Achievements -------------- None Challenges ------------ None Game ------ Seed MicroVisualSplitter Manual? 0 Play Time 00:06:48 Cumulative 253.8 hours Start 2025.11.11 @ 17:19:41 End 2025.11.11 @ 17:23:21 Sessions 1 Manual Loads 0 Difficulty Rogue Special Mode None Game No. 254 Rogue 250 Adventurer 3 Explorer 1 Win Type - Total 1 Types 1/0/0/0/0/0/0/0/0/0 Lore% 77 Gallery% 75 Achievement% 59 Wizard Run 0 Options --------- Layout 0 ASCII 0 Keyboard 0 Movement Numpad Keybinds 0 Fullscreen 2 Font 18/SmallcapsGlow Map View 76x50 Zoom Use 0% Tactical HUD 1 Map Filters NONE Filters NONE Steam 1 RUN: 0c7594b6-a640-468e-b2ae-38981f6c9672